fUSD/lending_fUSD_20251012
["ID","MTS","AMOUNT","RATE_DAILY","PERIOD"]
[390980305,1760260233060,-500.0,0.000149,2]
[390980306,1760260233070,-150.0,0.000149,2]
[390980307,1760260233081,-219.04998891,0.000149,2]
[390980308,1760260233090,-466.79520502,0.000149,2]
[390980309,1760260233100,-729.99280728,0.000149,2]
[390980310,1760260233112,-151.0,0.00014916,2]
[390980311,1760260233122,-151.0,0.00014916,2]
[390980312,1760260233132,-204.649634,0.00014916,2]
[390980313,1760260233142,-151.0,0.00014916,2]
[390980314,1760260233152,-151.455873,0.00014916,2]
[390980315,1760260233162,-151.0,0.00014916,2]
[390980316,1760260233173,-151.0,0.00014916,2]
[390980317,1760260233183,-151.0,0.00014916,2]
[390980318,1760260233194,-151.0,0.00014916,2]
[390980319,1760260233204,-151.0,0.00014916,2]
[390980320,1760260233213,-218.966974,0.00014916,2]
[390980321,1760260233223,-151.0,0.00014916,2]
[390980322,1760260233232,-151.0,0.00014916,2]
[390980323,1760260233242,-151.0,0.00014916,2]
[390980324,1760260233252,-200.0,0.00014916,2]
[390980325,1760260233262,-150.129,0.00014918,2]
[390980326,1760260233271,-237.116,0.00014918,2]
[390980327,1760260233282,-150.0,0.00014918,2]
[390980328,1760260233291,-254.981,0.00014918,2]
[390980329,1760260233300,-249.054,0.00014918,2]
[390980330,1760260233309,-187.977,0.00014918,2]
[390980331,1760260233320,-207.638,0.00014918,2]
[390980332,1760260233329,-161.421,0.00014918,2]
[390980333,1760260233339,-250.0,0.00014918,2]
[390980334,1760260233349,-208.834,0.00014918,2]
[390980335,1760260233358,-216.74,0.00014918,2]
[390980336,1760260233368,-159.0,0.00014918,2]
[390980337,1760260233378,-213.088,0.00014918,2]
[390980338,1760260233387,-3405.0,0.00014918,2]
[390980339,1760260233397,-2048.0,0.00014918,2]
[390980340,1760260233406,-749.0,0.00014918,2]
[390980341,1760260233416,-1266.0,0.00014918,2]
[390980342,1760260233425,-571.0,0.00014918,2]
[390980343,1760260233435,-1587.0,0.00014918,2]
[390980344,1760260233445,-604.0,0.00014918,2]
[390980345,1760260233455,-816.0,0.00014918,2]
[390980346,1760260233464,-328.874,0.00014918,2]
[390980347,1760260233473,-1182.0,0.00014918,2]
[390980348,1760260233483,-4121.0,0.00014918,2]
[390980349,1760260233492,-2046.22374328,0.00014933,2]
[390980350,1760260233502,-3078.0,0.00014939,2]
[390980351,1760260233511,-151.0,0.0001495,2]
[390980352,1760260233520,-151.0,0.0001495,2]
[390980353,1760260233532,-151.0,0.0001495,2]
[390980354,1760260233541,-151.0,0.0001495,2]
[390980355,1760260233551,-151.0,0.0001495,2]
[390980356,1760260233561,-151.0,0.0001495,2]
[390980357,1760260233570,-151.0,0.0001495,2]
[390980358,1760260233580,-257.902973,0.0001495,2]
[390980359,1760260233590,-151.0,0.0001495,2]
[390980360,1760260233599,-151.0,0.0001495,2]
[390980361,1760260233609,-151.0,0.0001495,2]
[390980362,1760260233619,-151.0,0.0001495,2]
[390980363,1760260233628,-169.7630311,0.00014954,2]
[390980364,1760260233638,-150.0,0.00014955,2]
[390980365,1760260233648,-128.75183274,0.00014955,2]
[390980375,1760260238120,-334.57271494,0.00014896,2]
[390980376,1760260238130,-250.25713697,0.000149,2]
[390980377,1760260238140,-862.59504809,0.00014918,2]
[390980378,1760260238152,-833.40495191,0.00014918,2]
[390980379,1760260238161,-1794.32352624,0.00014918,2]
[390980380,1760260238400,-334.57271494,0.00014898,2]
[390980381,1760260238410,-0.46166204,0.00014918,2]
[390980397,1760260240356,-751.01281172,0.00014918,2]
[390980398,1760260240366,-21.24816726,0.00014955,2]
[390980399,1760260240376,-500.0,0.00014955,2]
[390980400,1760260240386,-500.0,0.00014955,2]
[390980401,1760260240395,-150.0,0.00014955,2]
[390980402,1760260240404,-500.0,0.00014955,2]
[390980403,1760260240414,-150.0,0.00014955,2]
[390980404,1760260240423,-150.0,0.00014955,2]
[390980405,1760260240434,-150.0,0.00014955,2]
[390980406,1760260240443,-150.0,0.00014955,2]
[390980407,1760260240452,-150.0,0.00014955,2]
[390980408,1760260240463,-150.0,0.00014955,2]
[390980409,1760260240472,-500.0,0.00014955,2]
[390980410,1760260240482,-150.0,0.00014955,2]
[390980411,1760260240492,-500.0,0.00014955,2]
[390980412,1760260240503,-500.0,0.00014955,2]
[390980413,1760260240513,-150.0,0.00014955,2]
[390980414,1760260240522,-151.0,0.00014955,2]
[390980415,1760260240532,-151.0,0.00014955,2]
[390980416,1760260240541,-151.569825,0.00014955,2]
[390980417,1760260240551,-151.0,0.00014955,2]
[390980418,1760260240560,-151.871312,0.00014955,2]
[390980419,1760260240569,-181.35281432,0.00014959,2]
[390980420,1760260240579,-168.0,0.0001496,2]
[390980421,1760260240588,-700.0,0.0001497,2]
[390980422,1760260240598,-500.0,0.0001497,2]
[390980423,1760260240607,-700.0,0.0001497,2]
[390980424,1760260240616,-700.0,0.0001497,2]
[390980425,1760260240626,-858.83366637,0.0001497,2]
[390980426,1760260240635,-172.25,0.0001497,2]
[390980427,1760260240645,-172.25,0.0001497,2]
[390980428,1760260240654,-172.25,0.0001497,2]
[390980429,1760260240663,-172.25,0.0001497,2]
[390980430,1760260240672,-500.72256064,0.00014973,2]
[390980431,1760260240681,-257.24258815,0.00014973,2]
[390980432,1760260240691,-507.46837532,0.00014973,2]
[390980433,1760260240700,-500.0,0.00014973,2]
[390980434,1760260240709,-500.0,0.00014973,2]
[390980435,1760260240718,-500.0,0.00014973,2]
[390980436,1760260240732,-500.0,0.00014973,2]
[390980437,1760260240741,-500.0,0.00014973,2]
[390980438,1760260240752,-500.0,0.00014973,2]
[390980439,1760260240762,-502.09984021,0.00014973,2]
[390980440,1760260240772,-500.0,0.00014973,2]
[390980441,1760260240781,-500.0,0.00014973,2]
[390980442,1760260240791,-1000.0,0.00014979,2]
[390980443,1760260240802,-1000.0,0.00014979,2]
[390980444,1760260240811,-1000.0,0.00014979,2]
[390980445,1760260240822,-500.0,0.00014979,2]
[390980446,1760260240831,-157.03477063,0.00014979,2]
[390980447,1760260240841,-200.39651986,0.00014979,2]
[390980448,1760260240851,-185.867544,0.00014979,2]
[390980449,1760260240861,-191.98473015,0.00014979,2]
[390980450,1760260240871,-500.0,0.00014979,2]
[390980451,1760260240880,-500.0,0.0001498,2]
[390980452,1760260240889,-500.0,0.0001498,2]
[390980453,1760260240899,-24340.98831976,0.0001498,2]
[390980456,1760260243367,-334.57271494,0.000149,2]
[390980457,1760260243377,-61.34372305,0.0001498,2]
[390980595,1760260246850,-1653.64125289,0.0001498,2]
[390980598,1760260249688,-2330.44411578,0.0001498,2]
[390980599,1760260249715,-290.31241938,0.0001498,2]
[390980606,1760260427256,-152.0,0.00018865,29]
[390980607,1760260468589,920.7634019,0.00027397,120]
[390980609,1760260857859,161.98,0.00019,120]
[390980610,1760260905450,939.0,0.00027397,120]
[390980612,1760260949841,499.0,0.00027397,120]
[390980618,1760261168685,150.82,6.946e-05,2]
[390980619,1760261168765,150.82,9.262e-05,2]
[390980620,1760261168833,150.82,0.00011577,2]
[390980623,1760261208725,250.0,0.0001389,7]
[390980626,1760261265651,1441.4115,0.00027397,120]
[390980627,1760261271354,4000.0,0.00027397,120]
[390980628,1760261271470,1441.41147,0.00027397,120]
[390980629,1760261271614,1000.0,0.00027397,120]
[390980630,1760261282490,1441.41147,0.00027397,120]
[390980632,1760261292885,1441.41147,0.00027397,120]
[390980633,1760261305382,1441.41147,0.00027397,120]
[390980651,1760261432333,-666.0,0.00013864,3]
[390980652,1760261432343,-150.82,0.00013893,2]
[390980653,1760261432353,-510.63,0.0001391,2]
[390980654,1760261432362,-672.549995,0.00013911,2]
[390980655,1760261432373,-927.450005,0.00013911,2]
[390980656,1760261432383,-168.0,0.00014734,2]
[390980657,1760261432392,-755.43667282,0.00014799,2]
[390980658,1760261432402,-161.52240366,0.00014799,2]
[390980659,1760261432411,-1200.0,0.00014799,2]
[390980660,1760261432420,-173.3328937,0.00014799,2]
[390980661,1760261432429,-159.21839997,0.000148,2]
[390980662,1760261432439,-766.07884882,0.000148,2]
[390980663,1760261432448,-181.35281432,0.000148,2]
[390980664,1760261432461,-755.43667278,0.00014804,2]
[390980665,1760261432470,-752.17128893,0.0001481,2]
[390980666,1760261432483,-3.26538385,0.0001481,2]
[390980667,1760261432492,-168.0,0.00014811,2]
[390980668,1760261432503,-159.21839994,0.00014813,2]
[390980669,1760261432512,-173.33289364,0.00014813,2]
[390980670,1760261432521,-755.43667278,0.00014815,2]
[390980671,1760261432532,-755.43667278,0.0001482,2]
[390980672,1760261432542,-159.21839994,0.00014825,2]
[390980673,1760261432552,-755.43667278,0.00014826,2]
[390980674,1760261432561,-173.33289364,0.00014828,2]
[390980675,1760261432570,-755.43667278,0.00014831,2]
[390980676,1760261432580,-755.43667278,0.00014836,2]
[390980677,1760261432590,-159.21839994,0.00014838,2]
[390980678,1760261432599,-755.43667278,0.00014842,2]
[390980680,1760261432608,-755.43667278,0.00014847,2]
[390980681,1760261432618,-159.21839994,0.0001485,2]
[390980682,1760261432627,-755.43667278,0.00014852,2]
[390980683,1760261432636,-755.43667278,0.00014857,2]
[390980684,1760261432646,-159.21839994,0.00014863,2]
[390980685,1760261432655,-755.43667278,0.00014863,2]
[390980686,1760261432665,-150.0,0.00014863,2]
[390980687,1760261432674,-755.43667278,0.00014868,2]
[390980688,1760261432683,-755.43667278,0.00014873,2]
[390980689,1760261432697,-159.21839994,0.00014875,2]
[390980690,1760261432707,-257.91778498,0.00014875,2]
[390980691,1760261432716,-755.43667278,0.00014879,2]
[390980692,1760261432726,-814.8123,0.0001488,2]
[390980693,1760261432735,-3374.55497875,0.0001488,2]
[390980694,1760261432748,-8997.96000002,0.0001488,2]
[390980695,1760261432760,-3530.20001826,0.0001488,2]
[390980697,1760261432772,-2817.91089343,0.0001488,2]
[390980699,1760261432787,-7636.52307429,0.0001488,2]
[390980702,1760261432804,-2558.27217871,0.0001488,2]
[390980704,1760261432816,-422.52576524,0.0001488,2]
[390980706,1760261432827,-304.32741343,0.0001488,2]
[390980753,1760261438989,-173.33289364,0.00014842,2]
[390980755,1760261438999,-12430.05410538,0.0001488,2]
[390980758,1760261439009,-755.43667278,0.00014884,2]
[390980760,1760261439020,-159.21839994,0.00014888,2]
[390980762,1760261439031,-186.91036812,0.00014889,2]
[390980764,1760261439041,-755.43667278,0.00014889,2]
[390980766,1760261439052,-322.6107,0.0001489,2]
[390980768,1760261439062,-161.68846782,0.00014892,2]
[390980770,1760261439072,-755.43667278,0.00014895,2]
[390980772,1760261439083,-5000.0,0.00014895,2]
[390980773,1760261439094,-484.38931111,0.00014897,2]
[390980775,1760261439103,-6970.48573565,0.00014898,2]
[390980777,1760261439116,-846.2434568,0.00014898,2]
[390980779,1760261439132,-2228.29999997,0.00014898,2]
[390980783,1760261439159,-2972.04099355,0.00014898,2]
[390980883,1760261440271,-5295.97844524,0.00014898,2]
[390980886,1760261440283,-10560.1751446,0.00014898,2]
[390980888,1760261440295,-8698.86999965,0.00014898,2]
[390980908,1760261440483,-3562.5345308,0.00014898,2]
[390981014,1760261443432,-173.33289364,0.00014857,2]
[390981015,1760261443442,-381.66360436,0.00014898,2]
[390981017,1760261446283,-173.33289364,0.00014871,2]
[390981018,1760261446293,-76389.13893236,0.00014898,2]
[390981019,1760261446375,-89.27010695,0.00014898,2]
[390981020,1760261446502,-656.84003422,0.00014898,2]
[390981021,1760261446513,-790.88661443,0.00014898,2]
[390981098,1760261763957,276.0,0.00027397,120]
[390981101,1760261963043,1030.0,0.00027397,120]
[390981102,1760262140136,303.0,0.00027397,120]
[390981103,1760262238608,293.0,0.00027397,120]
[390981104,1760262270082,151.0,0.00027397,120]
[390981117,1760262631531,-250.0,0.00013768,2]
[390981118,1760262631540,-195.0,0.00013793,2]
[390981119,1760262631549,-156.31,0.00013817,2]
[390981121,1760262631559,-200.0,0.00013871,2]
[390981122,1760262631570,-169.0,0.00014086,2]
[390981123,1760262631579,-200.0,0.000142,5]
[390981124,1760262631589,-169.0,0.00014237,2]
[390981125,1760262631598,-500.0,0.000143,5]
[390981126,1760262631609,-169.0,0.00014392,2]
[390981127,1760262631620,-386.01,0.000144,2]
[390981128,1760262631630,-1106.12,0.000144,2]
[390981129,1760262631640,-800.0,0.000144,5]
[390981130,1760262631650,-375.0,0.00014421,2]
[390981131,1760262631659,-168.0,0.00014488,2]
[390981132,1760262631669,-257.91778498,0.00014491,2]
[390981133,1760262631678,-1200.0,0.00014499,2]
[390981134,1760262631688,-150.0,0.000145,2]
[390981135,1760262631701,-150.0,0.000145,2]
[390981136,1760262631712,-150.0,0.000145,2]
[390981137,1760262631722,-150.0,0.000145,2]
[390981138,1760262631732,-1000.0,0.000145,5]
[390981139,1760262631742,-322.6107,0.00014512,2]
[390981140,1760262631753,-1000.0,0.00014512,2]
[390981141,1760262631762,-500.0,0.00014512,2]
[390981142,1760262631772,-519.6,0.00014521,2]
[390981143,1760262631781,-168.12,0.00014521,2]
[390981144,1760262631791,-826.46,0.00014521,2]
[390981145,1760262631800,-168.12,0.00014521,2]
[390981146,1760262631812,-3177.78517655,0.00014521,2]
[390981147,1760262631821,-375.0,0.000146,2]
[390981148,1760262631832,-150.0,0.000146,2]
[390981149,1760262631841,-167.97,0.000146,2]
[390981150,1760262631852,-1300.0,0.000146,5]
[390981151,1760262631864,-375.0,0.00014609,2]
[390981152,1760262631874,-200.0,0.000147,5]
[390981153,1760262631884,-5000.0,0.00014779,2]
[390981154,1760262631897,-1544.59169823,0.0001478,2]
[390981155,1760262631907,-150.0,0.0001478,2]
[390981156,1760262631916,-1024.20613683,0.0001478,2]
[390981157,1760262631926,-173.33289364,0.0001478,2]
[390981158,1760262631936,-159.21839994,0.0001478,2]
[390981159,1760262631946,-151.08733458,0.0001478,2]
[390981160,1760262631955,-160.63425148,0.00014783,2]
[390981161,1760262631965,-163.03232325,0.00014787,2]
[390981162,1760262631975,-1024.20613683,0.00014793,2]
[390981163,1760262631986,-1002.26113602,0.00014797,2]
[390981164,1760262631995,-10737.38320147,0.00014798,2]
[390981165,1760262632079,-2607.36466766,0.00014798,2]
[390981166,1760262632156,-20027.29293087,0.00014798,2]
[390981167,1760262632166,-70548.4514,0.00014799,2]
[390981168,1760262632176,-1544.59169822,0.00014799,2]
[390981169,1760262632185,-875.73598036,0.00014799,2]
[390981170,1760262632195,-200.0,0.000148,5]
[390981171,1760262632204,-375.0,0.00014802,2]
[390981172,1760262632215,-1024.20613683,0.00014807,2]
[390981173,1760262632227,-375.0,0.00014807,2]
[390981174,1760262632237,-151.08733455,0.0001481,2]
[390981175,1760262632247,-1024.20613683,0.0001482,2]
[390981176,1760262632259,-1313.0,0.00014826,2]
[390981177,1760262632269,-1024.20613683,0.00014833,2]
[390981178,1760262632279,-1024.20613683,0.00014847,2]
[390981179,1760262632290,-875.73598036,0.0001485,2]
[390981180,1760262632300,-1024.20613683,0.0001486,2]
[390981181,1760262632310,-1024.20613683,0.00014873,2]
[390981182,1760262632320,-151.0,0.00014876,2]
[390981183,1760262632330,-500.0,0.0001488,2]
[390981184,1760262632341,-16762.00418936,0.0001488,2]
[390981284,1760262640572,-151.08733455,0.0001484,2]
[390981285,1760262640581,-151.08733455,0.0001487,2]
[390981286,1760262640590,-860.14177191,0.0001488,2]
[390981287,1760262640602,-6667.48097197,0.0001488,2]
[390981288,1760262640613,-296.3841437,0.0001488,2]
[390981289,1760262640624,-2030.84241109,0.0001488,2]
[390981290,1760262640635,-4672.40176,0.0001488,2]
[390981291,1760262640646,-64865.76396143,0.0001488,2]
[390981292,1760262640657,-35755.8687072,0.0001488,2]
[390981293,1760262640671,-205992.79999877,0.0001488,2]
[390981294,1760262642585,-161.23344115,0.00014879,2]
[390981295,1760262642595,-500.0,0.00014879,2]
[390981296,1760262642605,-471.25552635,0.00014879,2]
[390981297,1760262642615,-144.55137132,0.00014879,2]
[390981298,1760262642750,-36.80306997,0.00014879,2]
[390981299,1760262642759,-309.65159353,0.00014879,2]
[390981300,1760262645623,-190.34840647,0.00014879,2]
[390981301,1760262645633,-207.98245124,0.00014879,2]
[390981302,1760262645643,-500.0,0.00014879,2]
[390981303,1760262645652,-500.0,0.00014879,2]
[390981304,1760262645661,-500.0,0.00014879,2]
[390981305,1760262645670,-8217.57327437,0.0001488,2]
[390981306,1760262645685,-332.4,0.0001488,2]
[390981307,1760262645696,-459.62,0.0001488,2]
[390981314,1760262802136,150.0,0.000161,120]
[390981315,1760262828126,-151.04437905,0.00014582,2]
[390981316,1760262831124,-174.02477253,0.00014582,2]
[390981317,1760262835198,-284.66016128,0.00014582,2]
[390981318,1760262836710,-340.63961448,0.00014582,2]
[390981319,1760262838623,-152.70484419,0.00014582,2]
[390981320,1760262914277,207.9936701,0.00027328,120]
[390981321,1760262915761,207.9936701,0.00025958,120]
[390981322,1760262918687,207.9936701,0.00024588,120]
[390981323,1760262918773,207.9936701,0.00023219,120]
[390981324,1760262989086,230.57,0.000161,120]
[390981327,1760263038087,-258.39729334,0.00013699,2]
[390981328,1760263041367,-151.34179135,0.00013699,2]
[390981329,1760263042843,-81.25091531,0.00013699,2]
[390981330,1760263259742,1171.0,0.00027397,120]
[390981333,1760263407202,500.0,0.00027397,120]
[390981335,1760263414200,500.0,0.00027397,120]
[390981336,1760263425792,341.9369,0.00027397,120]
[390981343,1760263814507,1000.0,0.00027397,120]
[390981359,1760263831624,-150.0,0.00014789,2]
[390981360,1760263831634,-1200.0,0.00014789,2]
[390981361,1760263831644,-257.91778498,0.0001479,2]
[390981362,1760263831654,-1000.0,0.0001479,2]
[390981363,1760263831664,-1000.0,0.0001479,2]
[390981364,1760263831673,-1000.0,0.0001479,2]
[390981365,1760263831683,-1000.0,0.0001479,2]
[390981366,1760263831692,-1000.0,0.0001479,2]
[390981367,1760263831702,-1000.0,0.0001479,2]
[390981368,1760263831712,-1000.0,0.0001479,2]
[390981369,1760263831722,-1000.0,0.0001479,2]
[390981370,1760263831731,-1000.0,0.0001479,2]
[390981371,1760263831740,-1000.0,0.0001479,2]
[390981372,1760263831749,-1000.0,0.0001479,2]
[390981373,1760263831759,-1000.0,0.0001479,2]
[390981374,1760263831768,-1000.0,0.0001479,2]
[390981375,1760263831777,-322.6107,0.0001479,2]
[390981376,1760263831787,-3401.12389246,0.0001479,2]
[390981405,1760263832240,-151.0,0.00014796,2]
[390981406,1760263832254,-2229.82311068,0.00014798,2]
[390981407,1760263832264,-158.85632779,0.00014798,2]
[390981408,1760263832274,-151.08733455,0.00014798,2]
[390981409,1760263832284,-19464.7394,0.00014799,2]
[390981410,1760263832294,-1000.0,0.00014799,2]
[390981411,1760263832303,-1000.0,0.00014799,2]
[390981412,1760263832314,-5000.0,0.00014799,2]
[390981413,1760263832323,-1690.1877,0.00014799,2]
[390981414,1760263832333,-194.42598143,0.00014799,2]
[390981415,1760263832342,-646.39290049,0.00014799,2]
[390981416,1760263832351,-160.67326616,0.00014799,2]
[390981417,1760263832360,-1487.72550503,0.00014799,2]
[390981418,1760263832370,-2229.8231106,0.00014809,2]
[390981419,1760263832379,-646.39290042,0.0001481,2]
[390981420,1760263832388,-2229.8231106,0.00014821,2]
[390981421,1760263832397,-646.39290042,0.00014821,2]
[390981422,1760263832407,-168.0,0.00014826,2]
[390981423,1760263832416,-2229.8231106,0.00014832,2]
[390981424,1760263832425,-646.39290042,0.00014833,2]
[390981425,1760263832435,-2229.8231106,0.00014843,2]
[390981426,1760263832444,-646.39290042,0.00014844,2]
[390981427,1760263832453,-2229.8231106,0.00014855,2]
[390981428,1760263832463,-646.39290042,0.00014855,2]
[390981429,1760263832473,-671.56474526,0.00014858,2]
[390981430,1760263832482,-3238.6025947,0.0001486,2]
[390981431,1760263832491,-626.380069,0.0001486,2]
[390981432,1760263832501,-500.0,0.0001486,2]
[390981433,1760263832510,-2861.4367606,0.00014863,2]
[390981434,1760263832519,-256.3122571,0.00014863,2]
[390981435,1760263832528,-151.1346762,0.00014865,2]
[390981436,1760263832537,-2229.8231106,0.00014866,2]
[390981437,1760263832547,-374.40688067,0.00014866,2]
[390981438,1760263832563,-271.98601975,0.00014866,2]
[390981439,1760263832572,-151.0,0.00014877,2]
[390981440,1760263832581,-153.77368821,0.00014877,2]
[390981441,1760263832590,-2229.8231106,0.00014877,2]
[390981442,1760263832599,-646.39290042,0.00014878,2]
[390981443,1760263832609,-58633.84926603,0.0001488,2]
[390981444,1760263832618,-1352.9023,0.0001488,2]
[390981445,1760263832628,-375.0,0.00014887,2]
[390981446,1760263832638,-2229.8231106,0.00014889,2]
[390981447,1760263832647,-646.39290042,0.00014889,2]
[390981448,1760263832656,-156.82018341,0.00014889,2]
[390981449,1760263832666,-649.8624995,0.00014892,2]
[390981450,1760263832675,-500.0,0.00014897,2]
[390981451,1760263832684,-3059.65125042,0.00014897,2]
[390981452,1760263832693,-559.98638052,0.00014898,2]
[390981453,1760263832702,-1000.0,0.00014898,2]
[390981454,1760263832712,-150.0,0.00014898,2]
[390981455,1760263832721,-151.0,0.00014898,2]
[390981456,1760263832730,-151.0,0.00014898,2]
[390981457,1760263832739,-152.690523,0.00014898,2]
[390981458,1760263832749,-160.378321,0.00014898,2]
[390981459,1760263832758,-151.0,0.00014898,2]
[390981460,1760263832767,-500.0,0.00014898,2]
[390981461,1760263832776,-329.87886844,0.00014898,2]
[390981462,1760263832785,-565.48406414,0.00014898,2]
[390981463,1760263832794,-500.0,0.00014898,2]
[390981464,1760263832803,-500.0,0.00014898,2]
[390981465,1760263832812,-500.0,0.00014898,2]
[390981466,1760263832821,-500.0,0.00014898,2]
[390981467,1760263832831,-151.417803,0.00014898,2]
[390981468,1760263832840,-500.0,0.00014898,2]
[390981469,1760263832850,-636.0,0.00014899,2]
[390981470,1760263832859,-133.64738705,0.00014899,2]
[390981471,1760263832870,-400.0,0.00014899,2]
[390981474,1760263837653,-180.44112898,0.00014799,2]
[390981475,1760263837663,-151.0,0.00014898,2]
[390981476,1760263837672,-4.45964932,0.00014898,2]
[390981477,1760263837761,-146.54035068,0.00014898,2]
[390981478,1760263837770,-2585.78108288,0.00014899,2]
[390981480,1760263839912,-151.0,0.00014898,2]
[390981482,1760263839923,-1197.81154276,0.00014899,2]
[390981492,1760263842679,-1000.0,0.00014799,2]
[390981493,1760263842688,-931.09000385,0.00014899,2]
[390981494,1760263842835,-7836.67239979,0.00014899,2]
[390981497,1760263845704,-160.489228,0.00014898,2]
[390981499,1760263845714,-138.4307715,0.00014899,2]
[390981500,1760263845811,-492951.11450327,0.00014899,2]
[390981501,1760263845865,-3848.34450002,0.00014899,2]
[390981502,1760263845877,-526.39581674,0.00014899,2]
[390981506,1760264122350,1000.0,0.0002739,120]
[390981507,1760264140405,1000.0,0.0002739,120]
[390981508,1760264170305,436.78,0.0002739,120]
[390981538,1760264304943,157.58,6.945e-05,2]
[390981539,1760264305146,157.58,8.102e-05,2]
[390981540,1760264305345,157.58,9.26e-05,2]
[390981541,1760264305545,157.58,0.00010417,2]
[390981542,1760264305744,157.58,0.00011575,2]
[390981547,1760264403323,4871.0,0.00027397,120]
[390981549,1760264421260,868.4,0.00027397,120]
[390981557,1760264570699,250.0,0.00013899,7]
[390981564,1760264682266,1915.3,0.00027397,120]
[390981565,1760264707681,207.59681978,0.00023584,120]
[390981571,1760264872121,1115.17317301,0.00027397,120]
[390981598,1760265031895,-157.58,0.00012732,2]
[390981599,1760265031905,-250.0,0.0001382,2]
[390981600,1760265031914,-156.31,0.00013844,2]
[390981601,1760265031923,-305.89199482,0.00013855,3]
[390981602,1760265032058,-360.10800518,0.00013855,3]
[390981603,1760265032067,-735.21497803,0.0001389,2]
[390981604,1760265032076,-157.58,0.0001389,2]
[390981605,1760265032085,-1600.0,0.00013936,2]
[390981606,1760265032094,-1200.0,0.00014004,2]
[390981607,1760265032103,-157.62150102,0.00014005,2]
[390981608,1760265032114,-1842.37849898,0.00014005,2]
[390981609,1760265032123,-257.91778498,0.00014691,2]
[390981610,1760265032132,-186.23451856,0.00014698,2]
[390981611,1760265032141,-300.0,0.00014699,2]
[390981612,1760265032150,-1949.35491029,0.000147,2]
[390981613,1760265032160,-2682.41029886,0.000147,2]
[390981947,1760265037764,-143.95300359,0.000147,2]
[390981948,1760265037774,-407.98582,0.0001475,2]
[390981949,1760265037783,-161.59822512,0.00014788,2]
[390981950,1760265037792,-3507.49374846,0.00014789,2]
[390981951,1760265037800,-1000.0,0.00014789,2]
[390981952,1760265037809,-1066.01818596,0.00014789,2]
[390981953,1760265037818,-322.6107,0.00014789,2]
[390981954,1760265037827,-154.6484515,0.00014789,2]
[390981955,1760265037836,-160.69664218,0.0001479,2]
[390981956,1760265037845,-1231.1641853,0.00014795,2]
[390981957,1760265037855,-5000.0,0.00014797,2]
[390981958,1760265037865,-150.0,0.00014797,2]
[390981959,1760265037875,-76847.9527,0.00014798,2]
[390981960,1760265037884,-529.8241,0.00014798,2]
[390981961,1760265037893,-13734.2025,0.00014798,2]
[390981962,1760265037908,-179.11048018,0.00014799,2]
[390981963,1760265037925,-189.78782003,0.00014799,2]
[390981964,1760265037935,-389.27947148,0.00014799,2]
[390981965,1760265037944,-1231.16418529,0.00014807,2]
[390981966,1760265037954,-1231.16418529,0.00014818,2]
[390981967,1760265037963,-161.5982251,0.00014825,2]
[390981968,1760265037972,-864.0,0.00014826,2]
[390981969,1760265037981,-1231.16418529,0.0001483,2]
[390981970,1760265037990,-1231.16418529,0.00014842,2]
[390981971,1760265038002,-389.27947146,0.0001485,2]
[390981972,1760265038011,-1231.16418529,0.00014853,2]
[390981973,1760265038020,-500.0,0.0001486,2]
[390981974,1760265038030,-161.5982251,0.00014863,2]
[390981976,1760265038040,-1231.16418529,0.00014865,2]
[390981978,1760265038050,-1231.16418529,0.00014877,2]
[390981979,1760265038060,-500.0,0.00014879,2]
[390981982,1760265038070,-500.0,0.00014879,2]
[390981983,1760265038079,-352.75577855,0.00014879,2]
[390981985,1760265038088,-42816.70829085,0.0001488,2]